fUSD/lending_fUSD_20250606
["ID","MTS","AMOUNT","RATE_DAILY","PERIOD"]
[364782127,1749240645656,-480.0,0.00027397,5]
[364782128,1749240645665,-1100.1,0.00027397,5]
[364782130,1749240645675,-1071.95,0.00027397,5]
[364782133,1749240645684,-480.0,0.00027397,5]
[364782135,1749240645693,-1000.0,0.00027397,2]
[364782137,1749240645703,-597.4,0.00027397,5]
[364782139,1749240645712,-480.0,0.00027397,5]
[364782141,1749240645723,-765.24,0.00027397,5]
[364782143,1749240645732,-480.0,0.00027397,5]
[364782144,1749240645742,-480.0,0.00027397,5]
[364782147,1749240645751,-480.0,0.00027397,5]
[364782149,1749240645761,-482.74502455,0.00027397,5]
[364782150,1749240645770,-1837.71,0.00027397,5]
[364782152,1749240645780,-1500.48,0.00027397,5]
[364782155,1749240645789,-480.0,0.00027397,5]
[364782157,1749240645799,-1091.83,0.00027397,5]
[364782159,1749240645809,-480.0,0.00027397,5]
[364782161,1749240645819,-480.0,0.00027397,5]
[364782163,1749240645828,-4676.37,0.00027397,5]
[364782165,1749240645838,-480.0,0.00027397,5]
[364782167,1749240645848,-771.25,0.00027397,5]
[364782169,1749240645857,-480.0,0.00027397,5]
[364782171,1749240645867,-1073.19,0.00027397,5]
[364782173,1749240645876,-2954.48,0.00027397,5]
[364782175,1749240645885,-480.0,0.00027397,5]
[364782177,1749240645895,-1335.8,0.00027397,5]
[364782179,1749240645905,-481.3859118,0.00027397,5]
[364782181,1749240645914,-437.289691,0.00027397,2]
[364782183,1749240645924,-10833.54,0.00027397,5]
[364782185,1749240645934,-480.0,0.00027397,5]
[364782187,1749240645943,-480.0,0.00027397,5]
[364782189,1749240645953,-424.42628348,0.00027397,5]
[364782191,1749240645963,-480.0,0.00027397,5]
[364782193,1749240645974,-674.44,0.00027397,5]
[364782195,1749240645983,-480.0,0.00027397,5]
[364782197,1749240645993,-480.0,0.00027397,5]
[364782199,1749240646002,-480.0,0.00027397,5]
[364782201,1749240646012,-1341.13,0.00027397,5]
[364782203,1749240646021,-480.0,0.00027397,5]
[364782205,1749240646031,-500.0,0.00027397,5]
[364782207,1749240646040,-493.82174448,0.00027397,5]
[364782209,1749240646049,-500.0,0.00027397,5]
[364782211,1749240646059,-500.0,0.00027397,5]
[364782213,1749240646068,-480.0,0.00027397,5]
[364782215,1749240646077,-480.0,0.00027397,5]
[364782217,1749240646086,-9118.0,0.00027397,5]
[364782219,1749240646096,-480.0,0.00027397,5]
[364782221,1749240646105,-1363.03,0.00027397,5]
[364782223,1749240646114,-2363.43,0.00027397,5]
[364782225,1749240646123,-2094.52,0.00027397,5]
[364782227,1749240646132,-480.0,0.00027397,5]
[364782229,1749240646142,-480.0,0.00027397,5]
[364782231,1749240646151,-1425.98,0.00027397,5]
[364782233,1749240646160,-1674.49,0.00027397,5]
[364782236,1749240646169,-480.0,0.00027397,5]
[364782239,1749240646178,-2617.35,0.00027397,5]
[364782242,1749240646187,-480.0,0.00027397,5]
[364782244,1749240646197,-480.0,0.00027397,5]
[364782247,1749240646206,-1155.88,0.00027397,5]
[364782250,1749240646215,-3135.14,0.00027397,5]
[364782253,1749240646226,-4354.28,0.00027397,5]
[364782256,1749240646235,-701.08,0.00027397,5]
[364782259,1749240646244,-837.35,0.00027397,5]
[364782263,1749240646255,-765.39,0.00027397,5]
[364782266,1749240646264,-774.3,0.00027397,5]
[364782268,1749240646273,-480.0,0.00027397,5]
[364782271,1749240646285,-480.0,0.00027397,5]
[364782274,1749240646294,-725.11,0.00027397,5]
[364782276,1749240646303,-480.0,0.00027397,5]
[364782278,1749240646312,-552.73,0.00027397,5]
[364782280,1749240646321,-2998.55,0.00027397,5]
[364782282,1749240646330,-931.09,0.00027397,5]
[364782284,1749240646344,-480.0,0.00027397,5]
[364782286,1749240646353,-891.78,0.00027397,5]
[364782288,1749240646362,-480.0,0.00027397,5]
[364782290,1749240646372,-480.0,0.00027397,5]
[364782292,1749240646383,-480.0,0.00027397,5]
[364782294,1749240646393,-480.0,0.00027397,5]
[364782296,1749240646402,-1175.24,0.00027397,5]
[364782298,1749240646412,-1211.78,0.00027397,5]
[364782300,1749240646422,-480.0,0.00027397,5]
[364782302,1749240646431,-480.0,0.00027397,5]
[364782304,1749240646440,-604.53,0.00027397,5]
[364782306,1749240646449,-480.0,0.00027397,5]
[364782308,1749240646459,-573.43,0.00027397,5]
[364782310,1749240646468,-480.0,0.00027397,5]
[364782312,1749240646480,-1180.93,0.00027397,5]
[364782314,1749240646490,-480.0,0.00027397,5]
[364782316,1749240646500,-1778.5,0.00027397,5]
[364782318,1749240646509,-480.0,0.00027397,5]
[364782320,1749240646518,-2822.75,0.00027397,5]
[364782322,1749240646529,-480.0,0.00027397,5]
[364782324,1749240646538,-1207.6,0.00027397,5]
[364782326,1749240646547,-4001.96,0.00027397,5]
[364782328,1749240646556,-432.69760027,0.00027397,5]
[364782330,1749240646565,-856.8,0.00027397,5]
[364782332,1749240646574,-480.0,0.00027397,5]
[364782334,1749240646584,-632.88,0.00027397,5]
[364782336,1749240646593,-480.0,0.00027397,5]
[364782338,1749240646602,-480.0,0.00027397,5]
[364782340,1749240646611,-2732.21,0.00027397,5]
[364782342,1749240646621,-1414.51,0.00027397,5]
[364782343,1749240646630,-1526.89,0.00027397,5]
[364782344,1749240646638,-959.5,0.00027397,5]
[364782345,1749240646647,-2910.79,0.00027397,5]
[364782346,1749240646656,-480.0,0.00027397,5]
[364782347,1749240646665,-480.0,0.00027397,5]
[364782348,1749240646674,-480.0,0.00027397,5]
[364782349,1749240646683,-480.0,0.00027397,5]
[364782350,1749240646691,-991.03,0.00027397,5]
[364782351,1749240646700,-480.0,0.00027397,5]
[364782352,1749240646710,-1010.46,0.00027397,5]
[364782353,1749240646719,-480.0,0.00027397,5]
[364782355,1749240646730,-533.37,0.00027397,5]
[364782356,1749240646739,-1110.02,0.00027397,5]
[364782358,1749240646749,-3166.58,0.00027397,5]
[364782360,1749240646758,-480.0,0.00027397,5]
[364782362,1749240646768,-480.0,0.00027397,5]
[364782364,1749240646777,-480.0,0.00027397,5]
[364782367,1749240646786,-480.0,0.00027397,5]
[364782369,1749240646796,-480.0,0.00027397,5]
[364782370,1749240646805,-480.0,0.00027397,5]
[364782372,1749240646814,-480.0,0.00027397,5]
[364782374,1749240646823,-480.0,0.00027397,5]
[364782376,1749240646832,-1741.06,0.00027397,5]
[364782386,1749240646913,-480.0,0.00027397,5]
[364782388,1749240646923,-526.84,0.00027397,5]
[364782390,1749240646932,-480.0,0.00027397,5]
[364782392,1749240646942,-480.0,0.00027397,5]
[364782394,1749240646951,-214.89071463,0.00027397,5]
[364782396,1749240646961,-776.39,0.00027397,5]
[364782398,1749240646970,-480.0,0.00027397,5]
[364782400,1749240646981,-480.0,0.00027397,5]
[364782402,1749240646990,-625.4,0.00027397,5]
[364782404,1749240646999,-480.0,0.00027397,5]
[364782406,1749240647009,-3041.7,0.00027397,5]
[364782408,1749240647018,-480.0,0.00027397,5]
[364782410,1749240647027,-480.0,0.00027397,5]
[364782412,1749240647037,-427.09394536,0.00027397,5]
[364782414,1749240647046,-1627.41,0.00027397,5]
[364782416,1749240647056,-480.0,0.00027397,5]
[364782418,1749240647065,-480.0,0.00027397,5]
[364782420,1749240647075,-480.0,0.00027397,5]
[364782422,1749240647083,-10989.44,0.00027397,5]
[364782424,1749240647093,-480.0,0.00027397,5]
[364782426,1749240647102,-480.0,0.00027397,5]
[364782428,1749240647111,-649.3,0.00027397,5]
[364782430,1749240647121,-1451.66,0.00027397,5]
[364782432,1749240647130,-500.0,0.00027397,5]
[364782434,1749240647139,-1176.26,0.00027397,5]
[364782436,1749240647148,-480.0,0.00027397,5]
[364782438,1749240647158,-480.0,0.00027397,5]
[364782440,1749240647167,-2547.95,0.00027397,5]
[364782442,1749240647176,-1218.01,0.00027397,5]
[364782444,1749240647185,-480.0,0.00027397,5]
[364782446,1749240647195,-1218.01,0.00027397,5]
[364782448,1749240647203,-480.0,0.00027397,5]
[364782450,1749240647213,-1218.01,0.00027397,5]
[364782452,1749240647222,-1218.01,0.00027397,5]
[364782454,1749240647231,-480.0,0.00027397,5]
[364782456,1749240647240,-480.0,0.00027397,5]
[364782458,1749240647249,-480.0,0.00027397,5]
[364782460,1749240647259,-480.0,0.00027397,2]
[364782462,1749240647268,-1496.76,0.00027397,5]
[364782464,1749240647278,-480.0,0.00027397,5]
[364782466,1749240647287,-15228.1,0.00027397,5]
[364782468,1749240647297,-480.0,0.00027397,5]
[364782470,1749240647306,-494.53481212,0.00027397,5]
[364782472,1749240647315,-480.0,0.00027397,5]
[364782474,1749240647325,-480.0,0.00027397,5]
[364782476,1749240647337,-480.0,0.00027397,5]
[364782478,1749240647346,-624.52,0.00027397,5]
[364782480,1749240647356,-7319.26,0.00027397,5]
[364782482,1749240647365,-585.28,0.00027397,5]
[364782484,1749240647375,-480.0,0.00027397,5]
[364782486,1749240647384,-480.0,0.00027397,5]
[364782488,1749240647393,-831.85,0.00027397,5]
[364782490,1749240647402,-398.85324188,0.00027397,5]
[364782492,1749240647413,-991.12,0.00027397,5]
[364782494,1749240647423,-480.0,0.00027397,5]
[364782496,1749240647432,-480.0,0.00027397,5]
[364782498,1749240647441,-1394.64,0.00027397,5]
[364782500,1749240647451,-1727.03,0.00027397,5]
[364782502,1749240647460,-1655.78,0.00027397,5]
[364782504,1749240647469,-588.91,0.00027397,5]
[364782506,1749240647479,-544.83,0.00027397,5]
[364782508,1749240647488,-848.0,0.00027397,5]
[364782510,1749240647499,-493.66,0.00027397,5]
[364782512,1749240647509,-6315.6,0.00027397,5]
[364782514,1749240647518,-480.0,0.00027397,2]
[364782516,1749240647527,-480.0,0.00027397,5]
[364782518,1749240647536,-1505.19,0.00027397,5]
[364782520,1749240647545,-480.0,0.00027397,5]
[364782522,1749240647554,-1237.85,0.00027397,5]
[364782524,1749240647564,-849.58,0.00027397,5]
[364782526,1749240647573,-480.0,0.00027397,5]
[364782527,1749240647582,-553.2,0.00027397,5]
[364782529,1749240647591,-480.0,0.00027397,5]
[364782531,1749240647600,-1950.1,0.00027397,5]
[364782533,1749240647610,-650.7,0.00027397,2]
[364782535,1749240647620,-512.09,0.00027397,5]
[364782537,1749240647629,-480.0,0.00027397,5]
[364782539,1749240647639,-538.32,0.00027397,5]
[364782541,1749240647648,-654.03,0.00027397,5]
[364782543,1749240647659,-480.0,0.00027397,5]
[364782545,1749240647668,-426.45613207,0.00027397,5]
[364782548,1749240647678,-481.92198637,0.00027397,5]
[364782549,1749240647688,-3041.12,0.00027397,5]
[364782551,1749240647697,-480.0,0.00027397,5]
[364782553,1749240647707,-500.0,0.00027397,5]
[364782554,1749240647716,-480.0,0.00027397,5]
[364782556,1749240647726,-631.7,0.00027397,5]
[364782558,1749240647735,-442.06,0.00027397,5]
[364782560,1749240647745,-480.0,0.00027397,5]
[364782562,1749240647754,-1502.11,0.00027397,5]
[364782563,1749240647763,-931.49,0.00027397,5]
[364782565,1749240647772,-550.92,0.00027397,5]
[364782567,1749240647782,-3267.11,0.00027397,5]
[364782568,1749240647791,-636.38,0.00027397,2]
[364782569,1749240647800,-158.01,0.00027397,2]
[364782570,1749240647810,-263.34,0.00027399,5]
[364782571,1749240647819,-30000.0,0.000274,3]
[364782572,1749240647828,-758.81000993,0.0002741,2]
[364782574,1749240647837,-302.6,0.00027433,2]
[364782576,1749240647847,-1218.01,0.00027434,5]
[364782578,1749240647856,-460.94,0.00027435,2]
[364782580,1749240647864,-460.94,0.00027435,2]
[364782582,1749240647873,-460.94,0.00027435,2]
[364782584,1749240647882,-460.94,0.00027435,2]
[364782585,1749240647892,-775.27,0.00027435,2]
[364782587,1749240647901,-460.94,0.00027435,2]
[364782589,1749240647910,-460.94,0.00027435,2]
[364782591,1749240647919,-460.94,0.00027435,2]
[364782593,1749240647929,-758.81000993,0.00027436,2]
[364782595,1749240647938,-151.0,0.00027442,7]
[364782597,1749240647947,-151.0,0.00027442,7]
[364782599,1749240647958,-151.0,0.00027442,7]
[364782601,1749240647967,-151.0,0.00027442,7]
[364782603,1749240647979,-151.0,0.00027442,7]
[364782605,1749240647988,-247.548234,0.00027442,7]
[364782607,1749240647998,-151.0,0.00027442,7]
[364782609,1749240648007,-247.548234,0.00027442,7]
[364782611,1749240648017,-151.0,0.00027442,7]
[364782613,1749240648026,-1218.01,0.00027442,5]
[364782615,1749240648035,-1218.01,0.00027442,5]
[364782617,1749240648044,-1218.01,0.00027442,5]
[364782619,1749240648054,-1218.01,0.00027442,5]
[364782621,1749240648063,-1218.01,0.00027442,5]
[364782623,1749240648072,-1218.01,0.00027442,5]
[364782625,1749240648081,-1218.01,0.00027442,5]
[364782627,1749240648090,-1218.01,0.00027442,5]
[364782629,1749240648099,-1218.01,0.00027442,5]
[364782631,1749240648108,-1218.01,0.00027442,5]
[364782633,1749240648118,-1218.01,0.00027442,5]
[364782635,1749240648127,-1218.01,0.00027442,5]
[364782637,1749240648137,-1218.01,0.00027442,5]
[364782639,1749240648146,-1218.01,0.00027442,5]
[364782641,1749240648155,-151.0,0.00027442,7]
[364782643,1749240648164,-151.0,0.00027442,7]
[364782645,1749240648173,-821.990228,0.00027442,7]
[364782646,1749240648182,-821.990228,0.00027442,7]
[364782648,1749240648191,-151.0,0.00027442,7]
[364782650,1749240648200,-151.0,0.00027442,7]
[364782652,1749240648209,-758.81000993,0.00027461,2]
[364782654,1749240648218,-552.55874186,0.00027461,2]
[364782656,1749240648229,-302.48,0.00027469,2]
[364782658,1749240648239,-305.86,0.00027469,2]
[364782660,1749240648250,-300.38,0.00027469,2]
[364782662,1749240648259,-302.41,0.0002747,2]
[364782664,1749240648269,-500.0,0.00027473,5]
[364782666,1749240648278,-151.0,0.00027489,7]
[364782667,1749240648288,-151.0,0.00027489,7]
[364782668,1749240648298,-151.0,0.00027489,7]
[364782669,1749240648306,-151.0,0.00027489,7]
[364782670,1749240648316,-151.0,0.00027489,7]
[364782671,1749240648325,-151.0,0.00027489,7]
[364782672,1749240648337,-151.0,0.00027489,7]
[364782673,1749240648347,-151.0,0.00027489,7]
[364782674,1749240648356,-544.329475,0.00027489,7]
[364782675,1749240648365,-544.329475,0.00027489,7]
[364782676,1749240648376,-151.0,0.00027489,7]
[364782677,1749240648385,-151.0,0.00027489,7]
[364782678,1749240648394,-151.0,0.00027489,7]
[364782679,1749240648404,-162.344159,0.00027489,7]
[364782680,1749240648415,-151.0,0.00027489,7]
[364782681,1749240648424,-151.0,0.00027499,7]
[364782682,1749240648434,-151.0,0.00027499,7]
[364782683,1749240648443,-248.943433,0.00027499,7]
[364782684,1749240648451,-403.034295,0.00027499,7]
[364782685,1749240648460,-403.034295,0.00027499,7]
[364782686,1749240648471,-151.0,0.00027499,7]
[364782687,1749240648480,-471.158267,0.00027499,7]
[364782688,1749240648489,-153.573906,0.00027499,7]
[364782689,1749240648499,-199.642928,0.00027499,7]
[364782690,1749240648509,-471.158267,0.00027499,7]
[364782691,1749240648518,-151.0,0.00027541,7]
[364782693,1749240648527,-151.0,0.00027541,7]
[364782695,1749240648536,-151.0,0.00027541,7]
[364782697,1749240648545,-151.0,0.00027541,7]
[364782699,1749240648554,-151.0,0.00027541,7]
[364782701,1749240648563,-151.0,0.00027541,7]
[364782702,1749240648573,-190.7,0.0002755,2]
[364782704,1749240648581,-500.0,0.0002755,2]
[364782706,1749240648590,-500.0,0.0002756,5]
[364782708,1749240648599,-507.31678381,0.0002756,5]
[364782710,1749240648609,-1218.01,0.0002756,5]
[364782712,1749240648618,-1218.01,0.0002756,5]
[364782714,1749240648627,-1218.01,0.0002756,5]
[364782716,1749240648637,-1218.01,0.0002756,5]
[364782719,1749240648646,-1218.17,0.0002756,5]
[364782721,1749240648656,-480.0,0.00027561,5]
[364782722,1749240648665,-480.0,0.00027561,5]
[364782725,1749240648675,-151.0,0.00027561,7]
[364782726,1749240648684,-750.84,0.00027561,5]
[364782728,1749240648694,-480.0,0.00027561,5]
[364782729,1749240648703,-157.963801,0.00027561,7]
[364782730,1749240648712,-480.0,0.00027561,5]
[364782731,1749240648722,-157.963801,0.00027561,7]
[364782732,1749240648732,-299.223605,0.00027561,7]
[364782734,1749240648741,-480.0,0.00027561,5]
[364782736,1749240648751,-151.0,0.00027561,7]
[364782737,1749240648760,-496.58,0.00027561,5]
[364782739,1749240648769,-151.0,0.00027561,7]
[364782741,1749240648778,-151.0,0.00027561,7]
[364782743,1749240648788,-151.0,0.00027561,7]
[364782744,1749240648796,-151.0,0.00027561,7]
[364782745,1749240648806,-480.0,0.00027561,5]
[364782746,1749240648815,-480.0,0.00027561,5]
[364782747,1749240648825,-151.0,0.00027561,7]
[364782748,1749240648835,-151.0,0.00027561,7]
[364782749,1749240648844,-480.0,0.00027561,5]
[364782750,1749240648853,-151.0,0.00027561,7]
[364782751,1749240648863,-947.268152,0.00027561,7]
[364782752,1749240648873,-480.0,0.00027561,5]
[364782753,1749240648882,-947.268152,0.00027561,7]
[364782754,1749240648892,-480.0,0.00027561,5]
[364782755,1749240648902,-1652.978713,0.00027561,5]
[364782756,1749240648911,-1324.98,0.00027561,5]
[364782757,1749240648921,-243.8511121,0.00027561,5]
[364782758,1749240648930,-155.344461,0.00027561,7]
[364782759,1749240648940,-155.344461,0.00027561,7]
[364782760,1749240648948,-794.21,0.00027561,5]
[364782761,1749240648958,-155.344461,0.00027561,7]
[364782762,1749240648968,-155.344461,0.00027561,7]
[364782763,1749240648978,-151.0,0.00027561,7]
[364782764,1749240648987,-151.0,0.00027561,7]
[364782765,1749240648997,-622.3,0.00027561,5]
[364782766,1749240649007,-983.05591,0.00027561,7]
[364782767,1749240649016,-983.05591,0.00027561,7]
[364782768,1749240649026,-983.05591,0.00027561,7]
[364782769,1749240649036,-983.05591,0.00027561,7]
[364782770,1749240649045,-480.0,0.00027561,5]
[364782771,1749240649055,-151.0,0.00027561,7]
[364782772,1749240649064,-151.0,0.00027561,7]
[364782773,1749240649073,-480.0,0.00027561,5]
[364782774,1749240649083,-151.0,0.00027561,7]
[364782775,1749240649092,-151.0,0.00027561,7]
[364782776,1749240649104,-151.0,0.00027561,7]
[364782777,1749240649113,-151.0,0.00027561,7]
[364782778,1749240649123,-1568.13701,0.00027561,5]
[364782779,1749240649133,-158.659202,0.00027561,7]
[364782780,1749240649142,-158.659202,0.00027561,7]
[364782781,1749240649152,-158.659202,0.00027561,7]
[364782782,1749240649161,-158.659202,0.00027561,7]
[364782783,1749240649171,-480.0,0.00027561,5]
[364782784,1749240649180,-463.24735372,0.00027561,5]
[364782785,1749240649190,-330.932588,0.00027561,7]
[364782786,1749240649199,-330.932588,0.00027561,7]
[364782787,1749240649209,-167.787558,0.00027561,7]
[364782788,1749240649219,-167.787558,0.00027561,7]
[364782789,1749240649229,-154.309329,0.00027561,7]
[364782790,1749240649239,-167.787558,0.00027561,7]
[364782791,1749240649248,-167.787558,0.00027561,7]
[364782792,1749240649257,-480.0,0.00027561,5]
[364782793,1749240649267,-151.0,0.00027561,7]
[364782794,1749240649276,-739.24117,0.00027561,7]
[364782795,1749240649286,-739.24117,0.00027561,7]
[364782796,1749240649295,-739.24117,0.00027561,7]
[364782797,1749240649305,-739.24117,0.00027561,7]
[364782798,1749240649315,-480.0,0.00027561,5]
[364782799,1749240649324,-151.0,0.00027561,7]
[364782800,1749240649336,-480.0,0.00027561,5]
[364782801,1749240649346,-171.00455755,0.00027561,5]
[364782802,1749240649356,-318.82439043,0.00027561,5]
[364782803,1749240649365,-480.0,0.00027561,5]
[364782804,1749240649375,-480.0,0.00027561,5]
[364782805,1749240649385,-480.0,0.00027561,5]
[364782806,1749240649395,-480.0,0.00027561,5]
[364782807,1749240649404,-480.0,0.00027561,5]
[364782808,1749240649415,-151.0,0.00027561,7]
[364782809,1749240649424,-480.0,0.00027561,5]
[364782810,1749240649434,-876.11,0.00027561,5]
[364782811,1749240649443,-151.0,0.00027561,7]
[364782812,1749240649452,-151.0,0.00027561,7]
[364782813,1749240649462,-151.0,0.00027561,7]
[364782814,1749240649472,-480.0,0.00027561,5]
[364782815,1749240649481,-480.0,0.00027561,5]
[364782816,1749240649491,-317.34252888,0.00027561,5]
[364782817,1749240649500,-483.68,0.00027561,5]
[364782818,1749240649510,-480.0,0.00027561,5]
[364782819,1749240649519,-480.0,0.00027561,5]
[364782820,1749240649528,-480.0,0.00027561,5]
[364782821,1749240649538,-480.0,0.00027561,5]
[364782822,1749240649547,-480.0,0.00027561,5]
[364782823,1749240649557,-480.0,0.00027561,5]
[364782824,1749240649566,-1200.7,0.00027561,5]
[364782825,1749240649576,-480.0,0.00027561,5]
[364782826,1749240649585,-153.223815,0.00027561,7]
[364782827,1749240649594,-480.0,0.00027561,5]
[364782828,1749240649603,-480.0,0.00027561,5]
[364782829,1749240649612,-1839.33,0.00027561,5]
[364782830,1749240649621,-480.0,0.00027561,5]
[364782831,1749240649631,-480.0,0.00027561,5]
[364782832,1749240649640,-523.61,0.00027561,5]
[364782833,1749240649649,-480.0,0.00027561,5]
[364782834,1749240649659,-480.0,0.00027561,5]
[364782835,1749240649668,-480.0,0.00027561,5]
[364782836,1749240649678,-480.0,0.00027561,5]
[364782837,1749240649687,-480.0,0.00027561,5]
[364782838,1749240649696,-480.0,0.00027561,5]
[364782839,1749240649706,-1161.32,0.00027561,5]
[364782840,1749240649716,-480.0,0.00027561,5]
[364782841,1749240649726,-151.0,0.00027561,7]
[364782842,1749240649735,-480.0,0.00027561,5]
[364782843,1749240649744,-480.0,0.00027561,5]
[364782844,1749240649753,-151.0,0.00027561,7]
[364782845,1749240649762,-554.77,0.00027561,5]
[364782846,1749240649771,-1211.33,0.00027561,5]
[364782847,1749240649781,-521.28,0.00027561,5]
[364782848,1749240649791,-480.0,0.00027561,5]
[364782849,1749240649800,-480.0,0.00027561,5]
[364782850,1749240649809,-962.3,0.00027561,5]
[364782851,1749240649819,-480.0,0.00027561,5]
[364782852,1749240649827,-151.0,0.00027561,7]
[364782853,1749240649836,-480.0,0.00027561,5]
[364782854,1749240649845,-604.82,0.00027561,5]
[364782855,1749240649854,-150.0,0.00027561,5]
[364782856,1749240649863,-686.98,0.00027561,5]
[364782857,1749240649873,-591.75,0.00027561,5]
[364782858,1749240649882,-150.0,0.00027561,5]
[364782859,1749240649892,-701.32114,0.00027561,7]
[364782860,1749240649902,-701.32114,0.00027561,7]
[364782861,1749240649911,-500.0,0.00027561,5]
[364782862,1749240649920,-150.0,0.00027561,5]
[364782863,1749240649929,-542.2,0.00027561,5]
[364782864,1749240649938,-151.0,0.00027561,7]
[364782865,1749240649948,-888.1,0.00027561,5]
[364782866,1749240649957,-151.0,0.00027561,7]
[364782867,1749240649967,-701.32114,0.00027561,7]
[364782868,1749240649977,-701.32114,0.00027561,7]
[364782869,1749240649986,-151.0,0.00027561,7]
[364782870,1749240649995,-151.0,0.00027561,7]
[364782871,1749240650005,-480.0,0.00027561,5]
[364782872,1749240650014,-480.0,0.00027561,5]
[364782873,1749240650023,-150.0,0.00027561,5]
[364782874,1749240650032,-1083.72,0.00027561,5]
[364782875,1749240650042,-480.0,0.00027561,5]
[364782876,1749240650052,-480.0,0.00027561,5]
[364782877,1749240650061,-151.0,0.00027561,7]
[364782878,1749240650070,-500.29,0.00027561,5]
[364782879,1749240650079,-512.82,0.00027561,5]
[364782880,1749240650089,-151.0,0.00027561,7]
[364782881,1749240650098,-895.73,0.00027561,5]
[364782882,1749240650108,-151.0,0.00027561,7]
[364782883,1749240650117,-480.0,0.00027561,5]
[364782884,1749240650126,-480.0,0.00027561,5]
[364782885,1749240650135,-805.066752,0.00027561,7]
[364782886,1749240650144,-480.0,0.00027561,5]
[364782887,1749240650153,-151.0,0.00027561,7]
[364782888,1749240650162,-838.49,0.00027561,5]
[364782889,1749240650171,-805.066752,0.00027561,7]
[364782890,1749240650180,-563.02,0.00027561,5]
[364782891,1749240650190,-480.0,0.00027561,5]
[364782892,1749240650199,-480.0,0.00027561,5]
[364782893,1749240650208,-662.78,0.00027561,5]
[364782894,1749240650217,-638.27,0.00027561,5]
[364782895,1749240650227,-480.0,0.00027561,5]
[364782896,1749240650236,-151.0,0.00027561,7]
[364782897,1749240650247,-575.01,0.00027561,5]
[364782898,1749240650256,-151.0,0.00027561,7]
[364782899,1749240650265,-480.0,0.00027561,5]
[364782900,1749240650274,-480.0,0.00027561,5]
[364782901,1749240650283,-480.0,0.00027561,5]
[364782902,1749240650292,-151.0,0.00027561,7]
[364782903,1749240650301,-151.0,0.00027561,7]
[364782904,1749240650310,-151.0,0.00027561,7]
[364782905,1749240650319,-151.0,0.00027561,7]
[364782906,1749240650329,-846.01,0.00027561,5]
[364782907,1749240650341,-151.0,0.00027561,7]
[364782908,1749240650350,-480.0,0.00027561,5]
[364782909,1749240650359,-480.0,0.00027561,5]
[364782910,1749240650368,-298.80277,0.00027561,7]
[364782911,1749240650379,-480.0,0.00027561,5]
[364782912,1749240650388,-763.91,0.00027561,5]
[364782913,1749240650397,-480.0,0.00027561,5]
[364782914,1749240650407,-541.3,0.00027561,5]
[364782915,1749240650416,-480.0,0.00027561,5]
[364782916,1749240650425,-151.0,0.00027561,7]
[364782917,1749240650434,-151.0,0.00027561,7]
[364782918,1749240650443,-719.82,0.00027561,5]